bitfinex/quotes_ETHUSD_20260227
["timestamp","ask_amount","ask_price","bid_price","bid_amount"]
[1772215895985,1.79117665,1928.6,1928.0,0.47307364]
[1772215896159,0.49484702,1928.5,1928.0,0.47307364]
[1772215896565,0.49484702,1928.5,1928.2,0.0011]
[1772215897885,1.79125795,1928.5,1928.2,0.0011]
[1772215898976,1.79119375,1928.5,1928.2,0.0011]
[1772215899180,0.49484702,1928.5,1928.2,0.0011]
[1772215899360,1.79119404,1928.5,1928.2,0.0011]
[1772215902073,1.29732122,1928.6,1928.2,0.0011]
[1772215902394,0.001,1928.6,1928.2,0.47959467]
[1772215902595,0.001,1928.6,1928.3,1.77497343]
[1772215904591,0.45476831,1928.6,1928.2,0.0011]
[1772215905784,0.001,1928.6,1928.2,0.0011]
[1772215906797,0.45476831,1928.6,1928.2,0.0011]
[1772215908785,1.75011261,1928.5,1928.2,0.0011]
[1772215911185,1.2963443,1928.5,1928.2,0.0011]
[1772215911703,0.001,1928.6,1928.2,0.47959467]
[1772215912303,5.1855991,1929.0,1928.4,0.47849467]
[1772215912811,0.00153886,1929.0,1928.4,0.47849467]
[1772215913020,1.29754715,1929.0,1928.4,0.47849467]
[1772215913391,1.29754715,1929.0,1928.5,0.47849467]
[1772215913392,1.75131546,1929.0,1928.5,0.47849467]
[1772215913582,1.75131546,1929.0,1928.3,2.95392179]
[1772215913784,0.45376831,1928.9,1928.3,2.95392179]
[1772215914091,0.45376831,1928.9,1928.4,0.47849467]
[1772215914312,2.9011172,1928.7,1928.2,0.47959467]
[1772215914513,0.45376831,1928.7,1928.2,0.47959467]
[1772215915187,0.45376831,1928.7,1928.2,0.0011]
[1772215915507,1.29627709,1928.6,1928.2,0.0011]
[1772215917207,1.7500454,1928.6,1928.2,0.0011]
[1772215920594,1.7500454,1928.6,1928.3,0.0011]
[1772215920814,0.45376831,1928.4,1928.0,0.0011]
[1772215921801,1.29647876,1928.3,1928.0,0.0011]
[1772215922509,1.75024707,1928.3,1928.0,0.0011]
[1772215923086,1.29647876,1928.3,1928.0,0.0011]
[1772215924118,0.45376831,1928.2,1927.6,0.47959467]
[1772215924423,0.45376831,1928.0,1927.6,0.47959467]
[1772215926311,1.29674775,1927.9,1927.6,0.47959467]
[1772215928427,0.45376831,1928.2,1927.7,0.47849467]
[1772215928715,1.75017984,1928.4,1927.7,0.47849467]
[1772215929217,0.45376831,1928.3,1927.7,0.47849467]
[1772215930730,1.296546,1928.2,1927.7,0.47849467]
[1772215931024,0.46100277,1928.0,1927.6,0.0011]
[1772215932806,1.29674775,1927.9,1927.6,0.0011]
[1772215934124,1.29674775,1927.9,1927.8,0.0011]
[1772215934340,1.29674775,1927.9,1927.6,0.0011]
[1772215934624,1.29674775,1927.9,1927.7,0.0011]
[1772215934819,1.75775052,1927.9,1927.6,0.0011]
[1772215935425,1.29672676,1928.0,1927.6,0.47786043]
[1772215936515,1.75772953,1928.0,1927.6,0.0011]
[1772215936709,0.46100277,1927.9,1927.6,0.0011]
[1772215937117,1.75781369,1927.9,1927.6,0.0011]
[1772215937315,0.46100277,1927.8,1927.6,0.0011]
[1772215937507,1.29681092,1927.9,1927.4,0.0011]
[1772215937508,0.46100277,1927.6,1927.4,0.0011]
[1772215937711,0.46100277,1927.6,1927.3,0.0011]
[1772215938098,0.46100277,1927.6,1927.2,0.0011]
[1772215938796,2.44734889,1927.7,1927.0,0.00263886]
[1772215938797,0.46100277,1927.4,1927.0,0.00263886]
[1772215938998,1.75822153,1927.2,1926.9,0.0011]
[1772215940901,1.75815422,1927.3,1926.9,0.0011]
[1772215943004,0.46100277,1927.2,1926.9,0.0011]
[1772215943321,1.29728607,1927.1,1926.9,0.0011]
[1772215944032,1.29728607,1927.1,1926.8,0.0011]
[1772215944847,1.316,1927.4,1926.8,0.47786043]
[1772215945075,2.82086676,1927.8,1926.8,0.47786043]
[1772215945338,0.46100277,1927.7,1927.0,0.47676043]
[1772215945815,2.90835166,1927.5,1927.0,0.47676043]
[1772215946015,0.46100277,1927.5,1927.0,0.47676043]
[1772215946536,0.46100277,1927.5,1926.8,1.77534036]
[1772215946709,0.46100277,1927.5,1926.9,0.47676043]
[1772215946906,0.46100277,1927.5,1927.1,0.0011]
[1772215947339,1.29708415,1927.4,1927.1,0.0011]
[1772215947735,1.75806477,1927.5,1927.1,0.0011]
[1772215947941,0.001,1927.6,1927.1,0.47786043]
[1772215948830,0.00153886,1928.0,1927.3,0.47676043]
[1772215949007,1.29822731,1928.0,1927.3,0.47676043]
[1772215949218,0.46100277,1927.9,1927.3,0.47676043]
[1772215949414,1.75780316,1927.9,1927.3,1.77385877]
[1772215950243,1.75780316,1927.9,1927.4,0.47676043]
[1772215950845,1.75780316,1927.9,1927.2,0.47676043]
[1772215951017,0.46100277,1927.8,1927.2,1.77397506]
[1772215951547,1.29688229,1927.7,1927.2,1.77396909]
[1772215951927,1.75786945,1927.8,1927.2,1.77396909]
[1772215952536,0.00153886,1928.0,1927.3,0.47676043]
[1772215952537,1.2982271,1928.0,1927.3,0.47676043]
[1772215952719,1.75922987,1928.0,1927.3,0.47676043]
[1772215953430,0.46100277,1927.9,1927.3,0.47676043]
[1772215953641,0.46100277,1927.7,1927.1,0.0011]
[1772215953957,0.46100277,1927.6,1927.1,0.0011]
[1772215954248,0.46100277,1927.6,1927.0,0.0011]
[1772215955016,0.46100277,1927.6,1927.0,1.77518982]
[1772215955246,1.78400277,1927.6,1927.0,0.47786043]
[1772215955448,3.42994569,1927.8,1927.0,0.47786043]
[1772215955449,1.78400277,1927.7,1927.0,0.47786043]
[1772215955650,5.18795288,1927.6,1927.0,0.47786043]
[1772215956434,5.64895565,1927.6,1927.0,0.47786043]
[1772215958622,0.49766697,1927.5,1927.0,0.47786043]
[1772215958973,0.49766697,1927.5,1927.1,0.0011]
[1772215959662,1.323,1927.7,1927.1,0.48018055]
[1772215959952,2.61989989,1927.7,1927.1,0.48018055]
[1772215961166,3.11844056,1927.7,1927.2,1.29721876]
[1772215961462,3.11844056,1927.7,1927.1,1.29838607]
[1772215961652,3.11844056,1927.7,1927.1,1.77567754]
[1772215962254,3.11844056,1927.7,1927.1,0.47839147]
[1772215962456,0.49854067,1927.6,1927.1,0.47839147]
[1772215962749,0.49854067,1927.5,1926.8,0.0011]
[1772215963333,1.79562482,1927.4,1926.8,0.0011]
[1772215963932,0.49854067,1927.3,1926.8,0.0011]
[1772215964155,0.49854067,1927.2,1926.7,0.1548857]
[1772215965149,0.49854067,1927.2,1926.3,0.47729147]
[1772215965150,0.49854067,1926.9,1926.3,0.47729147]
[1772215965346,1.79602873,1926.8,1926.1,1.77525107]
[1772215966049,0.49854067,1926.7,1926.1,1.77525107]
[1772215966254,0.49854067,1926.4,1925.7,1.77548599]
[1772215966570,0.49854067,1926.4,1925.7,0.47729147]
[1772215967268,1.29782484,1926.3,1925.7,1.77551885]
[1772215967633,1.79608398,1926.8,1925.8,0.47729147]
[1772215967838,1.327,1926.7,1925.8,0.47729147]
[1772215968040,1.82554067,1926.7,1925.8,0.47729147]
[1772215968272,1.82554067,1926.7,1925.9,0.47729147]
[1772215968840,1.327,1926.7,1925.9,0.47729147]
[1772215969438,2.624592,1926.7,1926.1,0.47729147]
[1772215969672,3.12313267,1926.7,1926.1,0.47729147]
[1772215970253,0.49854067,1926.6,1925.9,1.77533974]
[1772215970452,3.92848636,1926.6,1925.9,2.9473656]
[1772215970675,0.49854067,1926.5,1925.9,2.9473656]
[1772215971073,0.49854067,1926.5,1925.9,2.9484656]
[1772215971368,1.79629814,1926.4,1925.9,0.0011]
[1772215971547,1.79629814,1926.4,1925.9,0.47839147]
[1772215971754,1.29774035,1926.5,1925.9,0.47839147]
[1772215973573,1.79621353,1926.6,1926.0,0.47729147]
[1772215974485,0.49854067,1926.5,1925.9,1.29914066]
[1772215974778,0.49854067,1926.5,1925.9,0.0011]
[1772215974969,0.49854067,1926.2,1925.6,2.61667968]
[1772215975351,1.79629814,1926.4,1925.7,1.77545889]
[1772215975575,0.49854067,1926.3,1925.7,1.77545889]
[1772215976167,0.49854067,1926.3,1925.7,1.77551879]
[1772215977262,0.49854067,1926.3,1925.7,1.77552004]
[1772215977462,1.29789222,1926.2,1925.7,0.47729147]
[1772215977658,1.29789222,1926.2,1925.7,1.77551921]
[1772215977873,1.79636572,1926.3,1925.8,0.47729147]
[1772215978068,0.49854067,1926.2,1925.7,1.29822774]
[1772215978379,0.49854067,1926.2,1925.7,0.47729147]
[1772215978965,1.29782505,1926.3,1925.7,0.47729147]
[1772215980184,0.49854067,1926.3,1925.8,1.2981618]
[1772215981066,0.49854067,1926.3,1925.7,1.7755117]
[1772215981264,0.49854067,1926.3,1925.6,0.0011]
[1772215981666,0.49854067,1926.2,1925.6,0.0011]
[1772215982077,0.49854067,1926.0,1925.6,0.0011]
[1772215982286,1.79663506,1925.9,1925.6,0.0011]
[1772215982463,1.29809439,1925.9,1925.6,0.0011]
[1772215982786,1.29775747,1926.4,1925.8,0.47729147]
[1772215983189,1.79627243,1926.5,1925.8,0.47839147]
[1772215983484,1.29773176,1926.5,1925.8,0.47839147]
[1772215984289,6.52168433,1926.6,1926.0,0.47729147]
[1772215984290,0.001,1926.6,1926.0,0.47729147]
[1772215984454,5.19109543,1927.0,1926.1,0.47729147]
[1772215984659,1.29889225,1927.0,1926.2,0.47729147]
[1772215984989,1.29889225,1927.0,1926.3,0.47729147]
[1772215985359,0.00153886,1927.0,1926.3,0.47729147]
[1772215985886,0.00153886,1927.0,1926.5,0.47729147]
[1772215986373,0.00153886,1927.0,1926.7,0.47729147]
[1772215986992,0.00153886,1927.0,1926.7,1.173]
[1772215987489,0.00153886,1927.0,1926.5,1.65129147]
[1772215987684,0.00153886,1927.0,1926.5,2.94897678]
[1772215990290,0.00153886,1927.0,1926.6,0.4763479]
[1772215991266,3.42994569,1926.9,1926.4,0.4763479]
[1772215991482,0.47493998,1926.9,1926.3,0.4763479]
[1772215991684,0.00153886,1927.0,1926.5,0.4763479]
[1772215992595,0.47647884,1927.0,1926.5,1.6523479]
[1772215994801,1.77385689,1927.0,1926.5,1.77400752]
[1772215994991,1.77385689,1927.0,1926.5,1.6513479]
[1772215995298,1.77385689,1927.0,1926.5,2.9490375]
[1772215995483,0.001,1926.9,1926.5,2.9490375]
[1772215995682,0.001,1926.9,1926.5,1.6513479]
[1772215996001,0.001,1926.9,1926.5,1.6523479]
[1772215996404,0.001,1926.9,1926.5,2.95003641]
[1772215996900,0.001,1926.9,1926.6,0.4763479]
[1772215997402,0.00153886,1927.0,1926.7,0.4763479]
[1772215999290,0.00153886,1927.0,1926.8,1.77383596]
[1772215999492,0.00153886,1927.0,1926.9,0.4763479]
[1772215999694,0.00153886,1927.0,1926.8,1.29748806]
[1772215999999,0.00153886,1927.0,1926.7,1.77385453]
[1772216000196,0.00153886,1927.0,1926.7,0.4763479]
[1772216000399,0.00153886,1927.0,1926.6,1.29758512]
[1772216000400,0.47647884,1927.0,1926.6,1.179]
[1772216001373,1.77384021,1927.0,1926.5,1.77397156]
[1772216001574,1.77384021,1927.0,1926.5,2.95297156]
[1772216002086,1.77384021,1927.0,1926.6,1.179]
[1772216002280,1.77384021,1927.0,1926.5,1.77397156]
[1772216002515,0.47493998,1926.9,1926.3,1.77411982]
[1772216002689,0.47493998,1926.9,1926.4,1.179]
[1772216003591,5.66462324,1926.9,1926.4,1.179]
[1772216003798,1.7723607,1926.9,1926.4,2.47675452]
[1772216003993,0.47493998,1926.8,1926.3,0.4763479]
[1772216004293,1.7738772,1927.0,1926.4,0.4763479]
[1772216004684,0.47493998,1926.9,1926.4,0.4763479]
[1772216005601,0.47493998,1926.9,1926.5,1.29769011]
[1772216005809,0.00153886,1927.0,1926.6,0.4763479]
[1772216006006,0.47647884,1927.0,1926.6,1.18]
[1772216006184,0.00153886,1927.0,1926.6,1.18]
[1772216006391,0.00153886,1927.0,1926.7,0.4763479]
[1772216006985,1.77198502,1927.5,1926.8,0.4763479]
[1772216007405,0.47493998,1927.4,1926.8,0.4763479]
[1772216007608,1.29715145,1927.3,1926.8,1.77380046]
[1772216008100,1.77209143,1927.3,1926.8,0.4763479]
[1772216008281,0.47493998,1927.2,1926.6,0.4763479]
[1772216008490,0.001,1926.9,1926.6,2.61397041]
[1772216009087,0.001,1926.9,1926.6,1.3163479]
[1772216009415,0.001,1926.9,1926.5,0.0011]
[1772216009599,0.001,1926.9,1926.5,2.47978202]
[1772216009803,0.001,1926.9,1926.5,1.1821]
[1772216010406,0.001,1926.9,1926.5,0.0011]
[1772216010795,0.47593998,1926.9,1926.5,0.0011]
[1772216011724,1.7733607,1926.9,1926.8,0.1]
[1772216011926,0.47593998,1926.9,1926.8,0.1]
[1772216012291,1.7733607,1926.9,1926.8,0.1]
[1772216013086,1.7733607,1926.9,1926.5,0.0011]
[1772216013286,0.47493998,1926.8,1926.5,0.0011]
[1772216013712,1.77247699,1926.8,1926.5,0.0011]
[1772216014122,1.29842189,1926.9,1926.5,0.4774479]
[1772216014422,0.001,1926.9,1926.5,0.4774479]
[1772216016423,0.001,1926.9,1926.6,1.29762275]
[1772216016593,0.001,1926.9,1926.6,0.4763479]
[1772216016793,0.001,1926.9,1926.6,1.6593479]
[1772216017196,0.001,1926.9,1926.6,0.4763479]
[1772216017526,0.001,1926.9,1926.7,0.4763479]
[1772216017818,1.29718961,1927.3,1926.7,0.4763479]
[1772216018421,1.77212959,1927.3,1926.8,1.183]
[1772216018611,1.77212959,1927.3,1926.8,1.6593479]
[1772216018999,1.29712902,1927.4,1926.9,0.46559061]
[1772216020028,1.75480711,1927.4,1926.9,0.46559061]
[1772216020808,5.18752917,1927.8,1927.0,0.45676385]
[1772216021119,0.45767809,1927.4,1926.9,1.184]
[1772216021508,0.45767809,1927.4,1926.8,0.45676385]
[1772216021714,0.45767809,1927.4,1926.8,2.93824583]
[1772216022301,0.45767809,1927.4,1926.8,1.64076385]
[1772216022500,0.45767809,1927.4,1926.8,2.93824758]
[1772216023426,1.29708415,1927.4,1926.9,0.45676385]
[1772216024321,0.45767809,1927.3,1926.9,0.45676385]
[1772216024516,0.45767809,1927.3,1926.9,1.64176385]
[1772216026107,1.75486318,1927.3,1926.9,1.64176385]
[1772216026808,1.75486318,1927.3,1926.7,0.45786385]
[1772216027008,0.45767809,1927.0,1926.7,0.0011]
[1772216027915,0.45767809,1926.8,1926.5,0.0011]
[1772216028426,5.1895399,1927.0,1926.5,0.45786385]
[1772216028427,1.75507546,1927.0,1926.5,0.45786385]
[1772216028727,1.29739737,1927.0,1926.5,0.45786385]
[1772216029230,1.75507546,1927.0,1926.5,0.45786385]
[1772216029729,0.45767809,1927.0,1926.5,0.45786385]
[1772216029918,1.29708415,1927.4,1926.5,0.45786385]
[1772216030124,1.29708415,1927.4,1926.7,0.45676385]
[1772216030438,1.29708415,1927.4,1926.9,0.45676385]
[1772216030439,1.75476224,1927.4,1926.9,0.45676385]
[1772216032240,1.29703705,1927.5,1927.0,0.45676385]
[1772216034325,1.75471514,1927.5,1927.0,0.45676385]
[1772216034735,1.75471514,1927.5,1927.0,1.75409974]
[1772216035429,1.75471514,1927.5,1927.0,1.75411135]
[1772216035609,1.75471514,1927.5,1927.0,0.45676385]
[1772216035816,0.45767809,1927.3,1926.8,1.75534131]
[1772216036007,0.45767809,1927.3,1926.8,1.75534554]
[1772216036208,1.29721876,1927.2,1926.8,0.45786385]
[1772216036408,1.29721876,1927.2,1926.8,1.75534997]
[1772216036616,1.29721876,1927.2,1926.8,0.45786385]
[1772216036819,5.64594864,1927.5,1926.9,0.45676385]
[1772216039947,5.64594864,1927.5,1926.9,1.75416195]
[1772216041233,5.64594864,1927.5,1927.0,0.45676385]
[1772216041540,1.75469495,1927.5,1927.0,0.45676385]
[1772216042140,1.75469495,1927.5,1927.0,1.75410363]
[1772216042340,1.75469495,1927.5,1927.0,0.45676385]
[1772216042517,1.75469495,1927.5,1927.0,1.7541067]
[1772216042722,1.75469495,1927.5,1927.0,0.45676385]
[1772216045043,1.75469495,1927.5,1927.0,1.7541107]
[1772216045227,0.49019879,1927.4,1927.0,0.45676385]
[1772216045624,0.49119879,1927.4,1927.0,0.45676385]
[1772216046151,0.45767809,1927.0,1926.7,0.0011]
[1772216046313,4.41178911,1927.2,1926.5,0.45786385]
[1772216046314,0.49019879,1926.8,1926.5,0.45786385]
[1772216046514,0.94787688,1926.9,1926.5,0.45786385]
[1772216047126,0.49019879,1927.2,1926.6,0.45676385]
[1772216047326,1.29812232,1927.4,1926.6,0.45676385]
[1772216047728,1.75580041,1927.4,1926.6,0.45676385]
[1772216048357,0.45867809,1927.4,1926.8,0.45676385]
[1772216048933,0.001,1927.4,1926.8,0.45676385]
[1772216049550,0.001,1927.4,1927.0,0.45676385]
[1772216049916,3.10052972,1927.8,1927.2,0.45676385]
[1772216050142,0.49771661,1927.7,1927.2,0.45676385]
[1772216053023,1.29681502,1927.8,1927.3,1.7908598]
[1772216053229,1.79546667,1927.9,1927.4,0.49370835]
[1772216053533,0.001,1927.9,1927.4,0.49370835]
[1772216054319,0.49771661,1927.5,1926.9,0.49370835]
[1772216055457,1.79475612,1927.5,1927.0,1.68070835]
[1772216057042,1.79475612,1927.5,1927.0,0.49370835]
[1772216057553,7.63838498,1927.8,1927.1,0.49480835]
[1772216057554,1.29685546,1927.8,1927.1,0.49480835]
[1772216057865,1.29785546,1927.8,1927.1,0.49480835]
[1772216058232,1.79557207,1927.8,1927.1,0.49480835]
[1772216059568,0.49771661,1927.7,1927.2,2.97792711]
[1772216060738,0.49771661,1927.7,1927.3,0.49370835]
[1772216062134,1.79465732,1927.7,1927.3,0.49370835]
[1772216062366,0.49771661,1927.6,1927.1,0.0011]
[1772216063651,0.49771661,1927.6,1927.1,0.49480835]
[1772216064783,1.29701686,1927.5,1927.1,0.49480835]
[1772216065269,1.79473347,1927.5,1927.1,0.49480835]
[1772216065486,0.49771661,1927.4,1927.1,0.0011]
[1772216066466,1.79473347,1927.5,1927.1,0.49480835]
[1772216069015,1.79473347,1927.5,1927.0,0.0011]
[1772216069016,1.79486806,1927.3,1927.0,0.0011]
[1772216069864,1.79486806,1927.3,1927.2,0.0011]
[1772216070398,1.79486806,1927.3,1927.0,0.0011]
[1772216071878,3.14566618,1927.7,1927.0,0.49480835]
[1772216072200,1.79564861,1927.7,1927.0,0.49480835]
[1772216073799,0.49771661,1927.6,1927.0,0.49480835]
[1772216075711,1.29701686,1927.5,1927.0,1.29842738]
[1772216076002,1.29701686,1927.5,1927.1,0.49370835]
[1772216077385,1.29694957,1927.6,1927.1,0.49370835]
[1772216078494,5.1886445,1927.7,1927.2,0.49370835]
[1772216078804,5.68636111,1927.7,1927.2,0.49370835]
[1772216080866,0.49907224,1927.6,1927.2,0.49370835]
[1772216081592,0.49907224,1927.6,1927.0,1.66911225]
[1772216081796,0.49907224,1927.6,1927.1,0.0011]
[1772216082280,0.50007224,1927.6,1927.1,0.0011]
[1772216083091,1.7960891,1927.5,1927.1,0.0011]
[1772216085466,1.7960891,1927.5,1927.1,0.48211225]
[1772216087799,0.49907224,1927.4,1927.1,0.0011]
[1772216089104,0.49907224,1927.4,1927.0,0.0011]
[1772216089304,0.49907224,1927.4,1926.8,0.0011]
[1772216089491,0.49907224,1927.2,1926.8,0.0011]
[1772216089798,1.79635831,1927.1,1926.8,0.0011]
[1772216090677,1.29728607,1927.1,1926.8,0.0011]
[1772216090899,1.29728607,1927.1,1926.8,0.48211225]
[1772216092582,1.29715145,1927.3,1926.9,0.48101225]
[1772216094582,1.29715145,1927.3,1926.9,0.48211225]
[1772216094905,1.79722369,1927.3,1926.9,0.48211225]
[1772216095103,0.49907224,1927.2,1926.9,0.0011]
[1772216095306,0.001,1927.3,1927.0,0.48101225]
[1772216099506,0.001,1927.3,1927.0,1.77835935]
[1772216099805,0.001,1927.3,1927.0,0.48101225]
[1772216100322,0.50007224,1927.3,1926.9,0.0011]
[1772216101606,1.29721876,1927.2,1926.9,0.0011]
[1772216101794,0.49907224,1927.1,1926.9,0.0011]
[1772216102803,0.49907224,1926.9,1926.6,0.0011]
[1772216103009,0.49907224,1927.1,1926.6,0.48211225]
[1772216103221,2.67321876,1927.2,1926.7,0.48101225]
[1772216103523,1.29815361,1927.3,1926.7,0.48101225]
[1772216103816,0.001,1927.3,1926.9,0.48101225]
[1772216106032,0.001,1927.3,1927.1,0.48101225]
[1772216106327,0.001,1927.7,1927.2,0.48101225]
[1772216107416,0.49907224,1927.6,1927.0,1.77836564]
[1772216107635,0.49907224,1927.6,1927.0,0.48101225]
[1772216108306,1.7960891,1927.5,1927.0,0.48101225]
[1772216108912,0.49907224,1927.4,1926.8,1.66701225]
[1772216109625,0.49907224,1927.4,1926.7,0.0011]
[1772216109820,0.49907224,1927.4,1926.7,0.48211225]
[1772216110715,0.49907224,1927.4,1926.8,0.49384389]
[1772216110716,1.29715145,1927.3,1926.8,0.49384389]
[1772216111091,1.75626239,1927.3,1926.8,0.49384389]
[1772216111296,0.45911094,1927.2,1926.7,0.0011]
[1772216111596,0.45911094,1927.2,1926.7,0.49494389]
[1772216111802,1.29715145,1927.3,1926.8,0.49384389]
[1772216112196,1.75626239,1927.3,1926.8,0.49384389]
[1772216112730,1.75626239,1927.3,1926.8,1.79132234]
[1772216113296,1.75626239,1927.3,1926.8,1.29747845]
[1772216113526,1.75626239,1927.3,1926.9,0.49384389]
[1772216113722,1.29709434,1927.4,1926.9,0.49384389]
[1772216113928,5.64723885,1927.5,1926.9,0.49384389]
[1772216113929,1.75615948,1927.5,1926.9,0.49384389]
[1772216114100,1.29704854,1927.5,1926.9,0.49384389]
[1772216115026,1.75615948,1927.5,1926.9,1.79124712]
[1772216115522,1.75615948,1927.5,1927.0,0.49384389]
[1772216117026,1.75615948,1927.5,1926.8,0.49384389]
[1772216117027,1.75626239,1927.3,1926.8,0.49384389]
[1772216117228,0.45911094,1927.2,1926.8,0.49384389]
[1772216119002,0.45911094,1927.4,1926.9,0.49384389]
[1772216119210,1.29706298,1927.5,1926.9,0.49384389]
[1772216119638,1.75617392,1927.5,1926.9,0.49384389]
[1772216123232,1.75617392,1927.5,1927.0,0.49384389]
[1772216123439,1.29706298,1927.5,1927.0,0.49384389]
[1772216125732,1.29706298,1927.5,1927.1,0.49384389]
[1772216126526,1.75617392,1927.5,1927.1,0.49384389]
[1772216126724,1.29706298,1927.5,1927.1,0.49384389]
[1772216126928,1.29699949,1927.6,1927.1,0.49384389]
[1772216127152,1.75611043,1927.6,1927.1,0.49384389]
[1772216128654,1.75607069,1927.6,1927.2,0.49384389]
[1772216129462,0.001,1927.7,1927.2,0.49384389]
[1772216129636,1.29790226,1927.7,1927.2,0.49384389]
[1772216129955,0.45911094,1927.6,1927.1,1.186]
[1772216130129,0.45911094,1927.6,1927.1,1.187]
[1772216130642,1.29701686,1927.5,1927.1,1.68084389]
[1772216130835,1.7561278,1927.5,1927.1,1.68084389]
[1772216131245,1.29701686,1927.5,1927.1,1.68084389]
[1772216132122,1.29701686,1927.5,1927.1,2.9781278]
[1772216132343,1.29801686,1927.5,1927.1,1.68084389]
[1772216132721,1.29801686,1927.5,1927.2,0.49384389]
[1772216133121,1.7571278,1927.5,1927.0,0.49384389]
[1772216133324,1.7571278,1927.5,1927.1,1.188]
[1772216134142,1.7571278,1927.5,1927.1,1.68184389]
[1772216136252,0.45911094,1927.4,1926.9,0.0011]
[1772216137655,1.75626239,1927.3,1926.9,0.0011]
[1772216141757,0.49505177,1927.2,1926.9,0.0011]
[1772216142261,1.29728607,1927.1,1926.9,0.0011]
[1772216142865,1.79232386,1927.2,1926.9,0.0011]
[1772216143960,0.49505177,1927.1,1926.9,0.0011]
[1772216144336,1.29735339,1927.0,1926.9,0.0011]
[1772216144666,0.49505177,1926.9,1926.8,0.0011]
[1772216145441,1.29733238,1927.1,1926.8,0.4702981]
[1772216145740,1.29733238,1927.1,1926.9,0.0011]
[1772216147362,0.49505177,1927.0,1926.9,0.0011]
[1772216149208,0.49505177,1927.0,1926.5,1.29873793]
[1772216149209,0.49505177,1927.0,1926.5,0.4702981]
[1772216149473,1.79247249,1926.9,1926.5,0.4702981]
[1772216150348,1.29735339,1927.0,1926.6,0.4691981]
[1772216150559,1.79240516,1927.0,1926.6,0.4691981]
[1772216150747,1.79232068,1927.2,1926.6,0.4691981]
[1772216150943,0.001,1927.4,1926.8,0.4691981]
[1772216151187,0.001,1927.4,1927.0,0.4691981]
[1772216151347,0.001,1927.4,1927.2,0.4691981]
[1772216153375,0.001,1927.4,1927.1,0.4691981]
[1772216154179,0.001,1927.4,1926.9,1.7665665]
[1772216154352,0.001,1927.4,1927.0,1.189]
[1772216154552,1.2980271,1927.5,1927.1,0.4691981]
[1772216154553,0.001,1927.5,1927.1,0.4691981]
[1772216154876,0.001,1927.7,1927.2,0.4691981]
[1772216155553,0.001,1927.7,1927.4,0.4691981]
[1772216155750,0.001,1927.7,1927.5,0.4691981]
[1772216157549,0.001,1927.7,1927.3,0.4691981]
[1772216157753,0.49605177,1927.7,1927.1,1.3101981]
[1772216157990,0.001,1927.6,1927.2,0.4691981]
[1772216158700,0.49605177,1927.6,1927.2,1.6591981]
[1772216159528,0.49605177,1927.6,1927.2,0.4691981]
[1772216159732,0.001,1927.6,1927.3,0.4691981]
[1772216160114,1.79300855,1927.6,1927.1,0.4691981]
[1772216160310,0.49505177,1927.5,1927.1,2.95646364]
[1772216161024,1.29795678,1927.6,1927.2,0.4691981]
[1772216161225,1.79300855,1927.6,1927.2,0.4691981]
[1772216161425,0.49505177,1927.5,1926.9,0.4691981]
[1772216161622,1.29708415,1927.4,1926.9,1.76657084]
[1772216161938,0.49505177,1927.3,1926.9,1.76657084]
[1772216162101,1.2980009,1927.6,1927.0,0.4691981]
[1772216162528,1.79305267,1927.6,1927.0,0.4691981]
[1772216163626,0.49505177,1927.5,1927.0,0.4691981]
[1772216163929,1.79213592,1927.4,1927.0,1.76655147]
[1772216164254,1.79302886,1927.6,1927.1,0.4691981]
[1772216164453,0.49505177,1927.5,1927.1,0.4691981]
[1772216166157,1.29708415,1927.4,1927.1,0.4691981]
[1772216167154,1.79210826,1927.5,1927.1,0.4691981]
[1772216169234,1.29799814,1927.6,1927.2,0.4691981]
[1772216169563,0.001,1927.9,1927.3,0.4691981]
[1772216169735,1.79243347,1928.5,1927.9,0.4691981]
[1772216169940,1.29641176,1928.4,1927.9,0.4691981]
[1772216170452,1.78425082,1928.4,1927.9,0.4691981]
[1772216171330,1.78425082,1928.4,1927.9,1.76588813]
[1772216172629,0.48783207,1928.4,1928.0,0.45989227]
[1772216172933,1.29759316,1929.0,1928.2,0.45989227]
[1772216173148,1.29759316,1929.0,1928.4,0.45989227]
[1772216173868,0.00153886,1929.0,1928.6,0.45989227]
[1772216174027,0.00153886,1929.0,1928.7,1.65189227]
[1772216174226,1.29755554,1929.0,1928.7,1.192]
[1772216174631,0.00153886,1929.0,1928.7,1.192]
[1772216175060,0.48783207,1928.9,1928.4,1.193]
[1772216175258,0.00153886,1929.0,1928.5,0.45989227]
[1772216175459,1.29754953,1929.0,1928.5,0.45989227]
[1772216176362,0.00153886,1929.0,1928.6,1.29627709]
[1772216176746,0.48937093,1929.0,1928.5,1.65189227]
[1772216176959,0.48937093,1929.0,1928.5,1.65289227]
[1772216178276,1.78542001,1929.0,1928.5,2.94922629]
[1772216178446,0.00153886,1929.0,1928.6,0.45989227]
[1772216179809,0.48783207,1929.6,1928.9,0.45989227]
[1772216180079,0.48783207,1929.6,1928.5,2.48933402]
[1772216180080,1.78442794,1929.7,1929.1,0.45989227]
[1772216180236,0.48783207,1929.4,1928.8,1.29612272]
[1772216180437,0.48783207,1929.4,1928.9,0.841]
[1772216180666,1.29566062,1929.6,1929.0,0.45989227]
[1772216180871,1.29654227,1929.7,1929.0,0.45989227]
[1772216181140,1.29654472,1929.7,1929.0,0.45989227]
[1772216181445,1.29654253,1929.7,1929.0,0.45989227]
[1772216181651,1.7843746,1929.7,1929.0,0.45989227]
[1772216182652,0.001,1929.7,1929.2,0.45989227]
[1772216182858,0.001,1929.7,1929.3,1.65289227]
[1772216183862,0.001,1929.6,1929.4,0.45989227]
[1772216184172,0.00153886,1930.0,1929.5,0.45989227]
[1772216184381,1.29687584,1930.0,1929.5,0.45989227]
[1772216184671,0.00153886,1930.0,1929.6,0.45989227]
[1772216185035,0.00153886,1930.0,1929.5,1.193]
[1772216185634,0.48937093,1930.0,1929.2,1.7557171]
[1772216185835,0.48783207,1929.8,1929.0,0.45989227]
[1772216186039,0.48783207,1929.8,1929.0,1.65289227]
[1772216186239,0.48783207,1929.8,1929.0,0.45989227]
[1772216186957,0.48783207,1929.6,1929.0,0.45989227]
[1772216187263,0.48783207,1929.6,1929.0,1.75589514]
[1772216187849,0.48783207,1929.6,1928.9,1.193]
[1772216188051,0.48783207,1929.6,1928.9,2.48907024]
[1772216188861,0.48783207,1929.6,1928.9,1.29607024]
[1772216189165,1.78350452,1929.5,1928.8,6.83733211]
[1772216189740,1.78350452,1929.5,1928.8,6.37743984]
[1772216189958,1.78350452,1929.5,1928.9,0.45989227]
[1772216191669,5.181929,1929.8,1929.1,0.45989227]
[1772216191670,1.78335073,1929.8,1929.1,0.45989227]
[1772216192046,1.29551866,1929.8,1929.1,0.45989227]
[1772216192246,0.48783207,1929.7,1929.1,0.45989227]